bitfinex-derivatives/quotes_ETHF0:USTF0_20250405
["timestamp","ask_amount","ask_price","bid_price","bid_amount"]
[1743892895462,1.4132,1794.8,1794.7,3.75230587]
[1743892897266,1.4132,1794.8,1794.7,2.98930587]
[1743892897467,1.4132,1794.8,1794.7,1.53110587]
[1743892900069,1.4132,1794.8,1794.7,1.53042048]
[1743892900971,2.19352,1794.8,1794.7,1.53042048]
[1743892905469,2.19352,1794.8,1794.7,1.53059248]
[1743892906071,1.4132,1794.8,1794.7,1.53059248]
[1743892907267,1.4132,1794.8,1794.7,1.53062165]
[1743892907871,1.4132,1794.8,1794.7,1.53060555]
[1743892909074,1.4132,1794.8,1794.7,1.53066749]
[1743892911775,21.14661514,1794.8,1794.7,1.53066749]
[1743892912776,21.14661514,1794.8,1794.7,1.53105817]
[1743892913370,21.14661514,1794.8,1794.7,1.53105854]
[1743892914175,21.14661514,1794.8,1794.7,2.92935854]
[1743892914371,21.14661514,1794.8,1794.7,2.17864]
[1743892914579,21.14661514,1794.8,1794.7,2.92936819]
[1743892914981,21.14661514,1794.8,1794.7,2.92936495]
[1743892924683,21.14661514,1794.8,1794.7,2.92946959]
[1743892928287,21.14661514,1794.8,1794.7,2.92947655]
[1743892928487,19.73341514,1794.8,1794.7,2.92947655]
[1743892928688,19.73341514,1794.8,1794.7,3.65327655]
[1743892930093,19.73341514,1794.8,1794.7,3.65309912]
[1743892933586,19.73341514,1794.8,1794.7,3.65306566]
[1743892935594,19.73341514,1794.8,1794.7,3.65308139]
[1743892940796,19.73341514,1794.8,1794.7,3.6530688]
[1743892944798,19.73341514,1794.8,1794.7,3.65308293]
[1743892946297,19.73341514,1794.8,1794.7,3.65301201]
[1743892946994,19.73341514,1794.8,1794.7,2.90244]
[1743892947195,19.73341514,1794.8,1794.7,3.65304256]
[1743892950000,19.73341514,1794.8,1794.7,3.65300215]
[1743892955603,21.22251514,1794.8,1794.7,3.65300215]
[1743892957299,19.73341514,1794.8,1794.7,3.65300215]
[1743892960602,19.73341514,1794.8,1794.7,3.65283641]
[1743892963003,19.73341514,1794.8,1794.7,3.6528007]
[1743892964000,21.22251514,1794.9,1794.8,0.78032]
[1743892964206,21.22251514,1794.9,1794.8,3.01255473]
[1743892965502,21.22251514,1794.9,1794.8,3.74995473]
[1743892966008,21.22251514,1794.9,1794.8,3.74995492]
[1743892969511,21.22251514,1794.9,1794.8,3.7499064]
[1743892970809,19.73341514,1794.9,1794.8,3.7499064]
[1743892971311,19.73341514,1794.9,1794.8,3.74981291]
[1743892973111,19.73341514,1794.9,1794.8,3.74976903]
[1743892977114,21.24271514,1794.9,1794.8,3.74976903]
[1743892978618,21.24271514,1794.9,1794.8,3.7492416]
[1743892980217,21.24271514,1794.9,1794.8,3.74924969]
[1743892983217,21.24271514,1794.9,1794.8,3.7491558]
[1743892987626,19.73341514,1794.9,1794.8,3.7491558]
[1743892988626,19.73341514,1794.9,1794.8,3.74873554]
[1743892990433,19.73341514,1794.9,1794.8,3.74874655]
[1743892990825,42.917686,1795.0,1794.9,0.78028]
[1743892991131,42.917686,1795.0,1794.9,1.52940655]
[1743892993642,42.917686,1795.0,1794.9,3.02370655]
[1743892995850,42.917686,1795.0,1794.9,3.02355224]
[1743892997540,42.917686,1795.0,1794.9,3.02354435]
[1743893001144,21.14201514,1795.0,1794.9,3.02357053]
[1743893002448,21.14201514,1795.0,1794.9,1.52927053]
[1743893004047,21.14201514,1795.0,1794.9,3.06057053]
[1743893004750,21.14201514,1795.0,1794.9,3.06053516]
[1743893006648,21.14201514,1795.0,1794.9,3.06036606]
[1743893007151,21.14201514,1795.0,1794.9,2.31158]
[1743893007351,21.14201514,1795.0,1794.9,3.06042922]
[1743893010153,21.14201514,1795.0,1794.9,3.06047032]
[1743893013654,21.14201514,1795.0,1794.9,3.06065798]
[1743893013953,21.14201514,1795.0,1794.9,3.06067595]
[1743893015549,21.14201514,1795.0,1794.9,2.31158]
[1743893015755,21.14201514,1795.0,1794.9,3.06078415]
[1743893019259,21.14201514,1795.0,1794.9,3.06125953]
[1743893020960,21.14201514,1795.0,1794.9,3.06126189]
[1743893022763,21.14201514,1795.0,1794.9,3.06125535]
[1743893024661,21.14201514,1795.0,1794.9,3.06122123]
[1743893028268,21.14201514,1795.0,1794.9,3.06128564]
[1743893031764,21.14201514,1795.0,1794.9,3.06139521]
[1743893035372,21.14201514,1795.0,1794.9,3.06139026]
[1743893037265,21.14201514,1795.0,1794.9,3.06139108]
[1743893038976,21.14201514,1795.0,1794.9,3.06137665]
[1743893040173,21.14201514,1795.0,1794.9,3.06136266]
[1743893043775,21.14201514,1795.0,1794.9,3.06133146]
[1743893045470,21.14201514,1795.0,1794.9,2.31158]
[1743893045671,21.14201514,1795.0,1794.9,3.06133888]
[1743893049184,21.14201514,1795.0,1794.9,3.0611988]
[1743893050976,21.14201514,1795.0,1794.9,3.06121804]
[1743893056282,21.14201514,1795.0,1794.9,3.06060676]
[1743893057788,19.73341514,1795.0,1794.9,3.06060676]
[1743893058087,19.73341514,1795.0,1794.9,3.77742838]
[1743893058889,19.73341514,1795.0,1794.9,6.98522838]
[1743893059191,19.73341514,1795.0,1794.9,6.98501681]
[1743893061292,19.73341514,1795.0,1794.9,10.55301681]
[1743893061791,19.73341514,1795.0,1794.9,13.05301681]
[1743893062090,19.73341514,1795.4,1795.3,0.78011]
[1743893062288,19.73341514,1795.4,1795.3,1.52884681]
[1743893063494,19.73341514,1795.4,1795.3,3.05185587]
[1743893065796,21.24431514,1795.4,1795.3,3.05185587]
[1743893066991,21.24431514,1795.4,1795.3,3.05180767]
[1743893067497,21.24431514,1795.4,1795.3,3.05196724]
[1743893067996,19.73341514,1795.4,1795.3,3.05196724]
[1743893068198,19.73341514,1795.4,1795.3,3.05198619]
[1743893068397,19.73341514,1795.4,1795.3,2.30481]
[1743893068596,19.73341514,1795.4,1795.3,3.05202073]
[1743893068996,19.73341514,1795.4,1795.3,2.30481]
[1743893069399,19.73341514,1795.4,1795.3,3.05197666]
[1743893069696,19.73341514,1795.4,1795.3,2.30481]
[1743893070299,19.73341514,1795.4,1795.3,3.0519427]
[1743893070495,19.73341514,1795.4,1795.3,2.30481]
[1743893070800,19.73341514,1795.4,1795.3,3.0519588]
[1743893071705,19.73341514,1795.4,1795.3,3.05198398]
[1743893072909,19.73341514,1795.4,1795.3,3.05212293]
[1743893074912,19.73341514,1795.4,1795.3,3.05192707]
[1743893077307,21.86531514,1795.4,1795.3,3.05192707]
[1743893077611,21.12751514,1795.4,1795.3,3.05192707]
[1743893078109,19.73341514,1795.4,1795.3,5.55192707]
[1743893079703,19.73341514,1795.4,1795.3,8.75972707]
[1743893080413,2.2263,1795.8,1795.6,0.77995]
[1743893080715,2.2263,1795.8,1795.7,0.74711707]
[1743893080902,3.00619,1795.8,1795.7,0.74711707]
[1743893081105,3.00619,1795.8,1795.7,2.16428221]
[1743893081302,2.2263,1795.8,1795.7,2.16428221]
[1743893081512,3.00619,1795.8,1795.7,2.16428221]
[1743893082110,3.00619,1795.8,1795.7,2.16426155]
[1743893082410,2.2263,1795.8,1795.7,2.16426155]
[1743893082913,3.00619,1795.8,1795.7,2.16426155]
[1743893084306,3.00619,1795.8,1795.7,0.74636155]
[1743893085414,5.50619,1795.8,1795.7,0.74636155]
[1743893085815,9.07219,1795.8,1795.7,0.74636155]
[1743893086015,0.77997,1795.6,1795.5,0.00836423]
[1743893086316,0.77997,1795.6,1795.5,0.75518114]
[1743893086815,2.90877,1795.6,1795.5,0.75518114]
[1743893087311,5.40877,1795.6,1795.5,0.75518114]
[1743893087509,0.78014,1795.3,1795.1,0.78018]
[1743893087817,3.77735,1795.2,1795.1,0.78018]
[1743893088019,3.77735,1795.2,1795.0,3.2078]
[1743893088315,1.4817,1795.1,1795.0,3.98804]
[1743893090821,1.4817,1795.1,1795.0,0.78024]
[1743893096821,1.54104423,1795.2,1795.0,0.78024]
[1743893097225,2.92954423,1795.2,1795.0,0.78024]
[1743893097725,1.3885,1795.1,1795.0,0.78024]
[1743893099628,1.3885,1795.1,1795.0,1.52152952]
[1743893100428,1.3885,1795.1,1795.0,1.52154137]
[1743893106029,2.16869,1795.1,1795.0,0.74130137]
[1743893106327,2.16869,1795.1,1795.0,1.45720137]
[1743893107227,2.16869,1795.1,1795.0,0.74130137]
[1743893107418,5.37649,1795.1,1795.0,0.74130137]
[1743893107625,6.09069,1795.1,1795.0,0.74130137]
[1743893108928,6.09069,1795.1,1794.9,2.27271423]
[1743893109230,4.70219,1795.1,1795.0,0.74123234]
[1743893110928,4.70219,1795.1,1795.0,0.74158362]
[1743893111827,1.49439,1795.1,1795.0,1.52182362]
[1743893112027,1.49439,1795.1,1795.0,2.96762362]
[1743893112229,0.78019,1795.1,1795.0,2.96762362]
[1743893112534,0.78019,1795.1,1795.0,2.18738362]
[1743893113234,7.55399,1795.1,1795.0,0.74158362]
[1743893114429,7.55399,1795.1,1795.0,2.18865727]
[1743893116036,4.34619,1795.1,1795.0,2.18865727]
[1743893118831,4.34619,1795.1,1795.0,0.74285727]
[1743893121839,0.78024,1795.0,1794.9,2.22214423]
[1743893122137,3.98804,1795.0,1794.9,0.75249405]
[1743893122342,4.71274,1795.0,1794.9,0.75249405]
[1743893122537,6.22674,1795.0,1794.9,0.75249405]
[1743893124341,0.78042,1794.6,1794.4,2.17997]
[1743893124542,0.78042,1794.6,1794.5,0.74396949]
[1743893125045,2.22302,1794.6,1794.5,0.74396949]
[1743893125433,2.22302,1794.6,1794.5,0.7437345]
[1743893131653,2.22302,1794.6,1794.5,0.74230926]
[1743893132652,2.22302,1794.6,1794.5,1.52275926]
[1743893132949,2.22302,1794.6,1794.5,2.21050926]
[1743893134054,0.78042,1794.6,1794.5,2.21050926]
[1743893134353,0.78042,1794.6,1794.5,2.91270926]
[1743893134651,0.78042,1794.6,1794.5,2.91242971]
[1743893134853,0.78042,1794.6,1794.5,2.91242836]
[1743893140157,0.78042,1794.6,1794.5,2.91246865]
[1743893142156,0.78042,1794.6,1794.5,2.91252906]
[1743893143857,0.78042,1794.6,1794.5,2.91272249]
[1743893145559,0.78042,1794.6,1794.5,2.91302277]
[1743893147561,0.78042,1794.6,1794.5,2.91338567]
[1743893149366,0.78042,1794.6,1794.5,2.91375475]
[1743893151166,0.78042,1794.6,1794.5,2.91433262]
[1743893152268,3.98822,1794.6,1794.5,2.91433262]
[1743893154868,3.98822,1794.6,1794.5,2.91519963]
[1743893157275,3.98822,1794.6,1794.5,2.91534263]
[1743893159468,3.2078,1794.6,1794.5,2.91534263]
[1743893159674,3.98821,1794.6,1794.5,2.91534263]
[1743893159878,3.2078,1794.6,1794.5,6.19579263]
[1743893160376,3.2078,1794.6,1794.5,6.19560266]
[1743893161073,17.48666451,1794.8,1794.7,0.78037]
[1743893161269,17.48666451,1794.8,1794.7,1.52512266]
[1743893161675,17.48666451,1794.8,1794.7,3.74476249]
[1743893162479,17.48666451,1794.8,1794.7,6.24476249]
[1743893163076,17.48666451,1794.8,1794.7,9.45256249]
[1743893163378,17.48666451,1794.8,1794.7,9.45152079]
[1743893164179,18.27520874,1795.2,1795.0,0.78021]
[1743893164371,18.27520874,1795.2,1795.1,3.76165079]
[1743893165878,17.49502874,1795.2,1795.1,3.76165079]
[1743893166880,17.49502874,1795.2,1795.1,4.54184079]
[1743893169278,0.00836423,1795.2,1795.1,4.54184079]
[1743893170880,0.78851423,1795.2,1795.1,4.54184079]
[1743893171483,0.00836423,1795.2,1795.1,7.04184079]
[1743893172585,0.00836423,1795.2,1795.1,10.2474527]
[1743893175697,0.77996,1795.7,1795.5,0.77998]
[1743893175898,2.23656,1795.7,1795.6,1.4752]
[1743893178598,2.95466,1795.7,1795.6,1.4752]
[1743893182801,0.77997,1795.6,1795.5,1.52828423]
[1743893183100,2.24677,1795.6,1795.5,2.93778423]
[1743893185002,1.4668,1795.6,1795.5,2.93778423]
[1743893187203,1.4668,1795.6,1795.5,3.67812152]
[1743893189104,1.4668,1795.6,1795.5,3.67862392]
[1743893190806,1.4668,1795.6,1795.5,3.67922872]
[1743893191908,1.4668,1795.6,1795.5,3.67948633]
[1743893192807,4.70583,1795.7,1795.6,0.77997]
[1743893193005,6.24193,1795.7,1795.6,2.9735721]
[1743893193207,5.462,1795.7,1795.6,2.9735721]
[1743893193400,6.24193,1795.7,1795.6,2.9735721]
[1743893193802,5.462,1795.7,1795.6,2.9735721]
[1743893194904,6.24193,1795.7,1795.6,2.9735721]
[1743893198211,6.24193,1795.7,1795.6,2.97473149]
[1743893198915,5.462,1795.7,1795.6,2.97473149]
[1743893199208,5.462,1795.7,1795.6,3.73963149]
[1743893200211,6.24193,1795.7,1795.6,3.73993853]
[1743893201715,6.24193,1795.7,1795.6,2.95996853]
[1743893203416,3.03413,1795.7,1795.6,2.95996853]
[1743893203617,0.77997,1795.6,1795.5,0.00836423]
[1743893203818,2.94887,1795.6,1795.5,0.00836423]
[1743893210023,6.50987,1795.6,1795.5,0.00836423]
[1743893210418,0.78009,1795.4,1795.2,2.25162]
[1743893210816,2.27691,1795.3,1795.1,3.98796]
[1743893211119,2.27695,1795.2,1795.1,3.2078]
[1743893211326,2.27695,1795.2,1795.0,3.7119]
[1743893211517,2.27695,1795.2,1795.0,3.72026423]
[1743893212325,2.27695,1795.2,1795.1,1.4714]
[1743893213419,0.78019,1795.1,1795.0,0.00836423]
[1743893213620,5.45989,1795.1,1795.0,0.00836423]
[1743893214126,7.95989,1795.1,1795.0,0.00836423]
[1743893214318,5.45989,1795.1,1795.0,0.00836423]
[1743893218328,5.45989,1795.1,1795.0,1.46546423]
[1743893218629,27.23556086,1795.1,1795.0,1.46546423]
[1743893219925,24.98347086,1795.1,1795.0,1.46546423]
[1743893220230,24.98347086,1795.1,1795.0,2.20148739]
[1743893220427,24.98347086,1795.1,1795.0,2.98172739]
[1743893220634,24.98347086,1795.1,1795.0,2.20148739]
[1743893220930,25.76366086,1795.1,1795.0,2.20148739]
[1743893221230,24.98347086,1795.1,1795.0,2.20148739]
[1743893221934,3.2078,1795.1,1795.0,1.46546423]
[1743893222228,4.6251,1795.1,1795.0,1.46546423]
[1743893223429,4.6251,1795.1,1795.0,2.24570423]
[1743893224033,4.6251,1795.1,1795.0,2.98159009]
[1743893224228,4.6251,1795.1,1795.0,2.24570423]
[1743893224732,1.4173,1795.1,1795.0,2.24570423]
[1743893225133,1.4173,1795.1,1795.0,1.46546423]
[1743893225431,2.19749,1795.1,1795.0,1.46546423]
[1743893226032,5.40529,1795.1,1795.0,1.46546423]
[1743893228532,5.40529,1795.1,1795.0,0.00836423]
[1743893230532,2.19749,1795.1,1795.0,0.00836423]
[1743893230735,5.40529,1795.1,1795.0,0.00836423]
[1743893231033,5.40529,1795.1,1795.0,1.49746423]
[1743893232136,5.40529,1795.1,1795.0,0.00836423]
[1743893232865,5.40529,1795.1,1795.0,1.49746423]
[1743893234078,2.19749,1795.1,1795.0,1.49746423]
[1743893234268,5.40529,1795.1,1795.0,1.49746423]
[1743893239376,5.40529,1795.1,1795.0,2.235788]
[1743893239673,5.40529,1795.1,1795.0,2.23577486]
[1743893243675,3.98799,1795.1,1795.0,2.23577486]
[1743893243913,3.98799,1795.1,1795.0,2.23698253]
[1743893245172,3.98799,1795.1,1795.0,2.23708646]
[1743893246957,3.98799,1795.1,1795.0,2.23716703]
[1743893250249,3.98799,1795.1,1795.0,2.23725269]
[1743893250652,21.45872973,1795.1,1795.0,2.23725501]
[1743893252061,21.45872973,1795.1,1795.0,1.49746423]
[1743893252456,18.25092973,1795.1,1795.0,2.23739195]
[1743893252757,21.45872973,1795.1,1795.0,2.23739142]
[1743893252958,21.45872973,1795.1,1795.0,1.49746423]
[1743893253254,25.02072973,1795.1,1795.0,2.23739189]
[1743893253459,25.02072973,1795.1,1795.0,1.49746423]
[1743893253854,25.02072973,1795.1,1795.0,2.23749186]
[1743893254663,25.02072973,1795.1,1795.0,1.49746423]
[1743893254858,25.02072973,1795.1,1795.0,2.23764004]
[1743893255059,25.02072973,1795.1,1795.0,2.23763279]
[1743893255258,25.02072973,1795.1,1795.0,1.49746423]
[1743893255456,25.02072973,1795.1,1795.0,2.23776648]
[1743893258961,25.02072973,1795.1,1795.0,2.23778711]
[1743893259771,25.76762973,1795.1,1795.0,2.23778711]
[1743893260268,25.76762973,1795.1,1795.0,0.74868711]
[1743893260470,0.78037,1794.7,1794.6,2.1863]
[1743893262874,2.95877,1794.7,1794.6,2.1863]
[1743893266271,6.16657,1794.7,1794.6,2.1863]
[1743893271177,6.16657,1794.7,1794.6,1.4812]
[1743893271377,25.8886094,1794.7,1794.6,1.4812]
[1743893271875,0.78041,1794.6,1794.5,1.44886423]
[1743893272078,2.25831,1794.6,1794.5,2.83886423]
[1743893273580,3.02821,1794.6,1794.5,1.39836423]
[1743893275783,2.25831,1794.6,1794.5,1.39836423]
[1743893276084,0.78041,1794.6,1794.5,2.14536423]
[1743893277579,3.98821,1794.6,1794.5,2.14536423]
[1743893280087,21.50288544,1794.6,1794.5,2.14536423]
[1743893281582,3.98821,1794.6,1794.5,2.14536423]
[1743893283485,21.50140434,1794.6,1794.5,2.14536423]
[1743893287787,23.77930434,1794.6,1794.5,1.39836423]
[1743893289091,20.57150434,1794.6,1794.5,1.39836423]
[1743893289286,23.77930434,1794.6,1794.5,1.39836423]
[1743893291196,23.77930434,1794.6,1794.5,0.00836423]
[1743893292294,23.02970434,1794.6,1794.5,0.00836423]
[1743893292488,23.02970434,1794.6,1794.5,1.54996423]
[1743893293095,23.79430434,1794.6,1794.5,0.00836423]
[1743893297389,0.78054,1794.3,1794.2,0.7177]
[1743893297615,0.78054,1794.3,1794.2,2.2004]
[1743893298297,16.10108484,1794.3,1794.2,2.2004]
[1743893299307,0.78058,1794.2,1794.1,0.00836423]
[1743893299504,6.25428,1794.2,1794.1,0.00836423]
[1743893299705,6.25428,1794.2,1794.1,1.49106423]
[1743893303214,6.98978,1794.2,1794.1,0.00836423]
[1743893303609,8.16071,1794.2,1793.7,1.4684]
[1743893303806,0.78076,1793.8,1793.7,2.2336]
[1743893304003,4.34276,1793.8,1793.7,2.2336]
[1743893305008,4.34276,1793.8,1793.7,2.9692]
[1743893305201,0.78076,1793.8,1793.7,2.9692]
[1743893305713,0.78076,1793.8,1793.7,2.204]
[1743893305903,0.78076,1793.8,1793.7,1.4684]
[1743893306105,0.78076,1793.8,1793.7,2.204]
[1743893306915,2.19516,1793.8,1793.7,1.4684]
[1743893308106,0.7808,1793.7,1793.6,0.00836423]
[1743893308312,9.667,1793.7,1793.6,0.00836423]
[1743893309008,9.667,1793.7,1793.6,1.46956423]
[1743893309512,7.5506,1793.7,1793.6,1.46956423]
[1743893309712,7.5506,1793.7,1793.6,2.16536423]
[1743893310014,6.7698,1793.7,1793.6,2.94620423]
[1743893310312,6.7698,1793.7,1793.6,2.16536423]
[1743893310607,3.562,1793.7,1793.6,2.16536423]
[1743893311914,0.78915423,1793.8,1793.6,2.16536423]
[1743893312116,4.35115423,1793.8,1793.7,1.5047]
[1743893312808,0.78915423,1793.8,1793.7,1.5047]
[1743893313014,4.35115423,1793.8,1793.7,1.5047]
[1743893313718,0.78915423,1793.8,1793.7,1.5047]
[1743893314015,4.35115423,1793.8,1793.7,1.5047]
[1743893316418,0.00836423,1793.8,1793.7,4.7855]
[1743893316718,15.32054484,1793.9,1793.8,0.78076]
[1743893317018,13.00554484,1793.9,1793.8,2.17026]
[1743893317318,13.00554484,1793.9,1793.8,4.67026]
[1743893319419,8.73650356,1794.0,1793.9,0.78071]
[1743893319624,8.73650356,1794.0,1793.9,4.72231]
[1743893319819,8.73650356,1794.0,1793.9,7.94651]
[1743893323313,10.91017416,1794.2,1794.1,0.78063]
[1743893323513,13.09220899,1794.5,1794.4,0.7805]
[1743893324118,13.09220899,1794.5,1794.4,2.894]
[1743893324322,13.09220899,1794.5,1794.4,6.456]
[1743893326526,0.00836423,1794.6,1794.5,0.78045]
[1743893326726,0.00836423,1794.6,1794.5,2.23425]
[1743893339340,0.00836423,1794.6,1794.5,0.78045]
[1743893339531,1.46026423,1794.6,1794.5,0.78045]
[1743893340538,0.75766423,1794.6,1794.5,0.78045]
[1743893340738,0.00836423,1794.6,1794.5,0.78045]
[1743893340932,0.00836423,1794.6,1794.5,2.16925]
[1743893341131,1.45926423,1794.6,1794.5,2.16925]
[1743893352471,7.98968546,1794.6,1794.5,2.16925]
[1743893354142,7.98968546,1794.6,1794.5,5.37705]
[1743893360951,12.34590153,1794.6,1794.5,5.37705]
[1743893361353,12.34590153,1794.6,1794.5,2.16925]
[1743893361649,12.34590153,1794.6,1794.5,5.37705]
[1743893363047,12.34590153,1794.6,1794.5,2.16925]
[1743893363351,12.34590153,1794.6,1794.5,5.37705]
[1743893364150,1.45926423,1794.6,1794.5,5.37705]
[1743893365240,1.45926423,1794.6,1794.5,2.16925]
[1743893365452,1.45926423,1794.6,1794.5,5.37705]
[1743893366645,1.45926423,1794.6,1794.5,6.14225]
[1743893367654,16.72329994,1794.6,1794.5,6.14225]
[1743893370457,36.1787495,1794.6,1794.5,6.14225]
[1743893383368,38.42790813,1794.6,1794.5,6.14225]
[1743893385468,36.97700813,1794.6,1794.5,6.14225]
[1743893388569,15.36059739,1794.6,1794.5,6.14225]
[1743893391059,16.86249739,1794.6,1794.5,6.14225]
[1743893395173,36.31794695,1794.6,1794.5,6.14225]
[1743893402787,36.31794695,1794.6,1794.5,4.75345]
[1743893403883,36.31794695,1794.6,1794.5,3.98825]
[1743893404090,37.78054695,1794.6,1794.5,7.54725]
[1743893406087,37.78054695,1794.6,1794.5,3.98825]
[1743893410492,37.78054695,1794.6,1794.5,0.78045]
[1743893410721,37.78054695,1794.6,1794.5,3.98825]
[1743893411094,22.42831379,1794.6,1794.5,3.98825]
[1743893415198,22.42831379,1794.6,1794.1,2.884]
[1743893415495,22.42831379,1794.6,1794.4,0.78049]
[1743893415496,1.5331,1794.5,1794.4,0.78049]
[1743893415691,2.31356,1794.5,1794.3,0.78051]
[1743893415891,0.7049,1794.4,1794.3,0.78051]
[1743893416087,2.238,1794.4,1794.3,0.78051]
[1743893417304,2.238,1794.4,1794.3,0.78054]
[1743893418396,3.0185,1794.4,1794.0,3.2078]
[1743893418606,2.1563,1794.3,1794.2,0.78057]
[1743893428102,19.66949434,1794.3,1794.2,0.78057]
[1743893428307,18.96039434,1794.3,1794.2,2.96087]
[1743893428709,17.51319434,1794.3,1794.2,2.96087]
[1743893429802,17.51319434,1794.3,1794.2,6.16867]
[1743893430199,17.51319434,1794.3,1794.2,8.66867]
[1743893430405,16.37608434,1794.3,1794.2,8.66867]
[1743893432011,13.10457696,1794.5,1794.4,0.7805]
[1743893432211,13.10457696,1794.5,1794.4,7.5473]
[1743893433310,13.10457696,1794.5,1794.4,8.2721]
[1743893435114,13.11294119,1794.6,1794.5,0.78045]
[1743893435410,13.11294119,1794.6,1794.5,2.98125]
[1743893437517,13.11294119,1794.6,1794.5,6.18905]
[1743893439116,10.92506953,1794.6,1794.5,6.18905]
[1743893442017,10.92506953,1794.6,1794.5,2.98125]
[1743893442238,10.92506953,1794.6,1794.5,6.18905]
[1743893444017,10.92506953,1794.6,1794.5,2.98125]
[1743893444218,10.92506953,1794.6,1794.5,6.18905]
[1743893445518,10.92506953,1794.6,1794.5,2.98125]
[1743893445719,10.92506953,1794.6,1794.5,6.18905]
[1743893447526,10.92506953,1794.6,1794.5,2.98125]
[1743893447730,10.92506953,1794.6,1794.5,6.18905]
[1743893450531,10.92506953,1794.6,1794.5,2.98125]
[1743893450732,10.92506953,1794.6,1794.5,6.18905]
[1743893451226,9.77703953,1794.6,1794.5,6.18905]
[1743893451530,5.04038953,1794.6,1794.5,8.68905]
[1743893451718,11.87408703,1794.8,1794.7,0.78037]
[1743893451937,11.87408703,1794.8,1794.7,7.54617]
[1743893452121,9.23632703,1794.8,1794.7,7.54617]
[1743893452316,9.23632703,1794.8,1794.7,8.28957]
[1743893454532,16.78593735,1794.9,1794.8,0.78032]
[1743893454533,1.49726423,1794.9,1794.8,0.78032]
[1743893454827,1.49726423,1794.9,1794.8,2.99252]
[1743893456153,1.49726423,1794.9,1794.8,6.20032]
[1743893457837,10.22963326,1794.9,1794.8,6.20032]
[1743893458436,10.22963326,1794.9,1794.8,4.74522]
[1743893461835,8.0432735,1794.9,1794.8,4.74522]
[1743893463629,8.0432735,1794.9,1794.8,1.53742]
[1743893463827,8.0432735,1794.9,1794.8,4.74522]
[1743893465236,6.5543735,1794.9,1794.8,4.74522]
[1743893465433,3.7529335,1794.9,1794.8,6.19852]
[1743893465739,19.70234364,1795.3,1795.2,0.78015]
[1743893465934,19.70234364,1795.3,1795.2,7.54495]
[1743893466135,16.51759364,1795.3,1795.2,7.54495]
[1743893466337,15.20851364,1795.3,1795.2,8.94005]
[1743893466530,13.60823364,1795.3,1795.2,8.94005]
[1743893466731,12.31061364,1795.3,1795.2,8.94005]
[1743893467238,9.18629364,1795.3,1795.2,8.94005]
[1743893468134,7.09655364,1795.3,1795.2,8.94005]
[1743893468335,35.42771446,1795.4,1795.3,0.78011]
[1743893468539,32.54253446,1795.4,1795.3,2.22281]
[1743893468838,32.54253446,1795.4,1795.3,2.66443093]
[1743893469436,31.25355446,1795.4,1795.3,2.66443093]
[1743893470137,13.07969719,1796.0,1795.9,0.77984]
[1743893470535,15.57969719,1796.0,1795.9,0.77984]
[1743893471146,15.57969719,1796.0,1795.8,7.54466]
[1743893471442,2.2292,1795.9,1795.8,6.77316423]
[1743893471640,2.2292,1795.9,1795.8,7.55305423]
[1743893471835,4.7292,1795.9,1795.8,7.55305423]
[1743893473233,2.2292,1795.9,1795.8,7.55305423]
[1743893473846,2.2292,1795.9,1795.8,6.77316423]
[1743893474042,2.2292,1795.9,1795.8,7.55305423]
[1743893476545,2.2292,1795.9,1795.8,4.34525423]
[1743893485155,0.7199,1796.1,1796.0,0.7798]
[1743893485347,2.2304,1796.1,1796.0,0.7798]
[1743893485847,1.5105,1796.1,1796.0,0.7798]
[1743893486050,1.5105,1796.1,1796.0,3.0502]
[1743893491360,2.9363,1796.5,1796.4,0.77963]
[1743893491859,2.9363,1796.5,1796.3,0.77964]
[1743893492061,1.4337,1796.4,1796.3,0.77964]
[1743893499559,1.4337,1796.4,1796.0,3.9418]
[1743893499762,0.77969,1796.3,1796.1,0.77974]
[1743893500071,0.77969,1796.3,1796.2,0.77971]
[1743893500656,0.77969,1796.3,1796.1,0.77973]
[1743893500877,1.4499,1796.2,1796.1,0.77973]
[1743893501770,2.22961,1796.2,1796.0,0.77977]
[1743893501965,2.22961,1796.2,1795.9,3.554]
[1743893501966,1.4499,1796.2,1795.9,3.554]
[1743893502165,0.77977,1796.1,1795.9,4.33381]
[1743893502569,0.77977,1796.1,1796.0,0.7798]
[1743893502769,2.5,1796.1,1795.8,0.00836423]
[1743893502968,3.98764,1795.9,1795.8,0.00836423]
[1743893503364,3.2078,1795.9,1795.8,0.00836423]
[1743893503874,3.9615,1795.9,1795.8,0.00836423]
[1743893504372,3.9615,1795.9,1795.8,0.78825423]
[1743893505068,3.9615,1795.9,1795.8,0.00836423]
[1743893505269,4.74134,1795.9,1795.8,0.00836423]
[1743893506175,3.9615,1795.9,1795.8,0.00836423]
[1743893506580,0.7537,1795.9,1795.8,0.78825423]
[1743893506876,3.98757,1796.1,1795.9,0.77981]
[1743893507176,0.7066,1796.2,1796.1,0.77976]
[1743893507568,0.736,1796.4,1796.3,0.77967]
[1743893508269,0.736,1796.4,1795.8,0.00836423]
[1743893508574,0.7797,1796.3,1796.1,0.77974]
[1743893508878,1.51566,1796.4,1796.2,0.77971]
[1743893510173,0.736,1796.4,1796.2,0.77971]
[1743893510567,1.51564,1796.4,1796.3,0.77967]
[1743893510878,1.51564,1796.4,1796.2,0.77969]
[1743893511080,1.51564,1796.4,1796.2,1.52829]
[1743893511280,0.736,1796.4,1796.2,0.7486]
[1743893511484,0.736,1796.4,1796.3,0.77967]
[1743893512583,0.736,1796.4,1796.1,1.3935]
[1743893512879,0.77976,1796.2,1796.0,0.77978]
[1743893513075,2.8317,1796.1,1796.0,0.77978]
[1743893514582,18.13588727,1796.1,1796.0,0.77978]
[1743893515981,18.13588727,1796.1,1795.9,6.7618]
[1743893516286,1.3952,1796.0,1795.9,7.54164]
[1743893516984,1.3952,1796.0,1795.9,8.95004]
[1743893521086,1.3952,1796.0,1795.9,6.7618]
[1743893521284,1.3952,1796.0,1795.9,3.2078]
[1743893521486,1.3952,1796.0,1795.9,3.98764]
[1743893525689,2.175,1796.0,1795.9,3.2078]
[1743893526091,1.3952,1796.0,1795.9,3.98764]
[1743893526295,1.3952,1796.0,1795.9,0.77984]
[1743893526494,1.3952,1796.0,1795.8,2.26096423]
[1743893526786,0.77984,1795.9,1795.8,0.78825423]
[1743893526992,2.17503,1796.0,1795.8,0.78825423]
[1743893527293,0.77984,1795.9,1795.8,0.00836423]